[Event "Titled Tuesday Blitz May 2 Late 2023"]
[White "Perez Ponsa, Federico"]
[Black "Baskin, Robert"]
[WhiteFideId "117927"]
[BlackFideId "24662402"]
[WhiteElo "2590"]
[BlackElo "2472"]
[Result "1-0"]
[Round "03"]
[TimeControl "180+2"]
[Date "2023.05.02"]
[WhiteClock "0:00:06"]
[BlackClock "0:00:01"]

1. Nf3 {[%clk 0:00:40]}  d5 {[%clk 0:02:54]} 2. g3 {[%clk 0:00:37]}  Nf6 {[%clk 0:02:52]} 3. Bg2 {[%clk 0:00:37]}  c5 {[%clk 0:02:51]} 4. O-O {[%clk 0:00:38]}  e6 {[%clk 0:02:49]} 5. d3 {[%clk 0:00:39]}  Nc6 {[%clk 0:02:44]} 6. Nbd2 {[%clk 0:00:39]}  Be7 {[%clk 0:02:44]} 7. e4 {[%clk 0:00:40]}  O-O {[%clk 0:02:43]} 8. Re1 {[%clk 0:00:40]}  Qc7 {[%clk 0:02:42]} 9. e5 {[%clk 0:00:39]}  Nd7 {[%clk 0:02:41]} 10. Qe2 {[%clk 0:00:39]}  b5 {[%clk 0:02:41]} 11. Nf1 {[%clk 0:00:40]}  Bb7 {[%clk 0:02:39]} 12. Bf4 {[%clk 0:00:41]}  Rfc8 {[%clk 0:02:38]} 13. Ne3 {[%clk 0:00:40]}  Qd8 {[%clk 0:02:36]} 14. h4 {[%clk 0:00:40]}  h6 {[%clk 0:02:30]} 15. h5 {[%clk 0:00:40]}  Bf8 {[%clk 0:02:15]} 16. Kh1 {[%clk 0:00:31]}  Ne7 {[%clk 0:02:06]} 17. g4 {[%clk 0:00:31]}  d4 {[%clk 0:02:06]} 18. Nf1 {[%clk 0:00:29]}  Nd5 {[%clk 0:02:05]} 19. Bh2 {[%clk 0:00:26]}  Be7 {[%clk 0:01:58]} 20. N1d2 {[%clk 0:00:27]}  c4 {[%clk 0:01:00]} 21. Ne4 {[%clk 0:00:27]}  Nc5 {[%clk 0:00:55]} 22. Rg1 {[%clk 0:00:26]}  cxd3 {[%clk 0:00:52]} 23. cxd3 {[%clk 0:00:26]}  Nxe4 {[%clk 0:00:52]} 24. dxe4 {[%clk 0:00:25]}  Nb4 {[%clk 0:00:51]} 25. Ne1 {[%clk 0:00:25]}  d3 {[%clk 0:00:49]} 26. Qd2 {[%clk 0:00:24]}  Nc2 {[%clk 0:00:45]} 27. Rd1 {[%clk 0:00:24]}  Nxe1 {[%clk 0:00:42]} 28. Rgxe1 {[%clk 0:00:24]}  Qd4 {[%clk 0:00:24]} 29. f4 {[%clk 0:00:21]}  Rd8 {[%clk 0:00:20]} 30. Bg1 {[%clk 0:00:20]}  Qc4 {[%clk 0:00:18]} 31. a3 {[%clk 0:00:18]}  Rac8 {[%clk 0:00:18]} 32. Re3 {[%clk 0:00:18]}  Qc2 {[%clk 0:00:18]} 33. Rxd3 {[%clk 0:00:16]}  Rxd3 {[%clk 0:00:18]} 34. Qxd3 {[%clk 0:00:16]}  Qxd3 {[%clk 0:00:12]} 35. Rxd3 {[%clk 0:00:16]}  Bc6 {[%clk 0:00:11]} 36. Bxa7 {[%clk 0:00:15]}  b4 {[%clk 0:00:10]} 37. axb4 {[%clk 0:00:14]}  Bxb4 {[%clk 0:00:11]} 38. Bd4 {[%clk 0:00:14]}  Bf8 {[%clk 0:00:12]} 39. Bc3 {[%clk 0:00:14]}  Rb8 {[%clk 0:00:12]} 40. Rd2 {[%clk 0:00:14]}  Rb3 {[%clk 0:00:12]} 41. Kh2 {[%clk 0:00:15]}  Rb8 {[%clk 0:00:10]} 42. Bf3 {[%clk 0:00:15]}  Ra8 {[%clk 0:00:11]} 43. Kg2 {[%clk 0:00:15]}  Ra1 {[%clk 0:00:11]} 44. Rd1 {[%clk 0:00:14]}  Ra2 {[%clk 0:00:11]} 45. Kf2 {[%clk 0:00:14]}  Bc5+ {[%clk 0:00:10]} 46. Kg3 {[%clk 0:00:14]}  Ra8 {[%clk 0:00:09]} 47. Rc1 {[%clk 0:00:14]}  Bf8 {[%clk 0:00:09]} 48. Bd4 {[%clk 0:00:14]}  Bb5 {[%clk 0:00:09]} 49. Bc5 {[%clk 0:00:15]}  Rc8 {[%clk 0:00:09]} 50. b4 {[%clk 0:00:15]}  Rb8 {[%clk 0:00:05]} 51. Bxf8 {[%clk 0:00:15]}  Kxf8 {[%clk 0:00:06]} 52. Rc5 {[%clk 0:00:16]}  Bd7 {[%clk 0:00:07]} 53. Rc7 {[%clk 0:00:16]}  Ke8 {[%clk 0:00:07]} 54. Rc4 {[%clk 0:00:12]}  Bb5 {[%clk 0:00:07]} 55. Rd4 {[%clk 0:00:13]}  Rc8 {[%clk 0:00:06]} 56. f5 {[%clk 0:00:13]}  Rc3 {[%clk 0:00:06]} 57. Kf4 {[%clk 0:00:14]}  Rb3 {[%clk 0:00:04]} 58. Bd1 {[%clk 0:00:14]}  Rb2 {[%clk 0:00:03]} 59. f6 {[%clk 0:00:13]}  gxf6 {[%clk 0:00:03]} 60. exf6 {[%clk 0:00:14]}  Bd7 {[%clk 0:00:02]} 61. Ke5 {[%clk 0:00:14]}  Rf2 {[%clk 0:00:02]} 62. Bb3 {[%clk 0:00:12]}  Rb2 {[%clk 0:00:02]} 63. Rd3 {[%clk 0:00:13]}  Rg2 {[%clk 0:00:02]} 64. Bd1 {[%clk 0:00:12]}  Rb2 {[%clk 0:00:02]} 65. Rb3 {[%clk 0:00:12]}  Rd2 {[%clk 0:00:02]} 66. Bf3 {[%clk 0:00:13]}  Rc2 {[%clk 0:00:01]} 67. b5 {[%clk 0:00:13]}  Rc5+ {[%clk 0:00:01]} 68. Kd6 {[%clk 0:00:12]}  Rxb5 {[%clk 0:00:02]} 69. Rxb5 {[%clk 0:00:13]}  Bxb5 {[%clk 0:00:03]} 70. g5 {[%clk 0:00:13]}  Kf8 {[%clk 0:00:02]} 71. g6 {[%clk 0:00:10]}  Be8 {[%clk 0:00:02]} 72. g7+ {[%clk 0:00:09]}  Kg8 {[%clk 0:00:02]} 73. Ke7 {[%clk 0:00:08]}  Ba4 {[%clk 0:00:03]} 74. Bg4 {[%clk 0:00:09]}  Bb3 {[%clk 0:00:03]} 75. Be2 {[%clk 0:00:09]}  Bc2 {[%clk 0:00:03]} 76. Bb5 {[%clk 0:00:07]}  Bb3 {[%clk 0:00:01]} 77. e5 {[%clk 0:00:06]} 1-0


[Site "https://www.chess.com"]

[Event "Titled Tuesday Blitz May 2 Late 2023"]
[White "Grigorov, Grigor"]
[Black "Msellek, Ilyass"]
[WhiteFideId "2907313"]
[BlackFideId "675938"]
[WhiteElo "2510"]
[BlackElo "2302"]
[Result "1-0"]
[Round "03"]
[TimeControl "180+2"]
[Date "2023.05.02"]
[WhiteClock "0:00:23"]
[BlackClock "0:00:15"]

1. d4 {[%clk 0:03:00]}  b6 {[%clk 0:02:59]} 2. e4 {[%clk 0:03:00]}  e6 {[%clk 0:02:58]} 3. Nf3 {[%clk 0:03:00]}  Bb7 {[%clk 0:02:59]} 4. Bd3 {[%clk 0:03:00]}  d6 {[%clk 0:02:48]} 5. O-O {[%clk 0:03:00]}  Nd7 {[%clk 0:02:47]} 6. Re1 {[%clk 0:03:00]}  Ne7 {[%clk 0:02:43]} 7. Nbd2 {[%clk 0:02:59]}  g6 {[%clk 0:02:42]} 8. c3 {[%clk 0:02:58]}  Bg7 {[%clk 0:02:41]} 9. Nf1 {[%clk 0:02:58]}  h6 {[%clk 0:02:41]} 10. Ng3 {[%clk 0:02:57]}  a6 {[%clk 0:02:41]} 11. Be3 {[%clk 0:02:56]}  O-O {[%clk 0:02:38]} 12. Qd2 {[%clk 0:02:56]}  Kh7 {[%clk 0:02:33]} 13. h3 {[%clk 0:02:37]}  e5 {[%clk 0:02:31]} 14. Nh2 {[%clk 0:02:28]}  Ng8 {[%clk 0:02:28]} 15. f4 {[%clk 0:02:23]}  exd4 {[%clk 0:02:13]} 16. cxd4 {[%clk 0:02:23]}  c5 {[%clk 0:02:13]} 17. d5 {[%clk 0:02:17]}  b5 {[%clk 0:02:11]} 18. Rad1 {[%clk 0:02:05]}  c4 {[%clk 0:02:11]} 19. Bb1 {[%clk 0:02:05]}  a5 {[%clk 0:02:10]} 20. Nf3 {[%clk 0:02:04]}  b4 {[%clk 0:02:06]} 21. Bd4 {[%clk 0:02:02]}  Rc8 {[%clk 0:02:03]} 22. Rc1 {[%clk 0:01:58]}  Re8 {[%clk 0:01:58]} 23. Kh2 {[%clk 0:01:58]}  Bxd4 {[%clk 0:01:56]} 24. Qxd4 {[%clk 0:01:58]}  Ba6 {[%clk 0:01:43]} 25. e5 {[%clk 0:01:55]}  Qb6 {[%clk 0:01:30]} 26. Qd2 {[%clk 0:01:52]}  dxe5 {[%clk 0:01:24]} 27. fxe5 {[%clk 0:01:52]}  Qc5 {[%clk 0:01:23]} 28. Ne4 {[%clk 0:01:46]}  Qc7 {[%clk 0:01:19]} 29. d6 {[%clk 0:01:34]}  Qc6 {[%clk 0:01:14]} 30. Qf4 {[%clk 0:01:31]}  Kg7 {[%clk 0:01:12]} 31. Ng3 {[%clk 0:01:25]}  Nc5 {[%clk 0:01:04]} 32. Nd4 {[%clk 0:01:19]}  Qd7 {[%clk 0:01:03]} 33. Re3 {[%clk 0:00:57]}  Nd3 {[%clk 0:00:58]} 34. Bxd3 {[%clk 0:00:48]}  cxd3 {[%clk 0:00:59]} 35. Rf1 {[%clk 0:00:45]}  d2 {[%clk 0:00:57]} 36. Rd1 {[%clk 0:00:44]}  Bc4 {[%clk 0:00:45]} 37. b3 {[%clk 0:00:41]}  Be6 {[%clk 0:00:44]} 38. Rxd2 {[%clk 0:00:41]}  Rc5 {[%clk 0:00:42]} 39. Ne4 {[%clk 0:00:40]}  Rd5 {[%clk 0:00:42]} 40. Nf6 {[%clk 0:00:40]}  Nxf6 {[%clk 0:00:41]} 41. Qxf6+ {[%clk 0:00:39]}  Kh7 {[%clk 0:00:42]} 42. Red3 {[%clk 0:00:37]}  Rc5 {[%clk 0:00:32]} 43. Rf2 {[%clk 0:00:34]}  Bd5 {[%clk 0:00:31]} 44. Re3 {[%clk 0:00:28]}  Kg8 {[%clk 0:00:28]} 45. Ne2 {[%clk 0:00:28]}  a4 {[%clk 0:00:24]} 46. Nf4 {[%clk 0:00:27]}  Qf5 {[%clk 0:00:15]} 47. Nxd5 {[%clk 0:00:23]} 1-0


[Site "https://www.chess.com"]

[Event "Titled Tuesday Blitz May 2 Late 2023"]
[White "Kleiman, Jake"]
[Black "Flores, Diego"]
[WhiteFideId "2020041"]
[BlackFideId "108049"]
[WhiteElo "2399"]
[BlackElo "2613"]
[Result "1/2-1/2"]
[Round "03"]
[TimeControl "180+2"]
[Date "2023.05.02"]
[WhiteClock "0:00:08"]
[BlackClock "0:00:05"]

1. e4 {[%clk 0:03:00]}  c5 {[%clk 0:02:56]} 2. c3 {[%clk 0:03:01]}  Nf6 {[%clk 0:02:52]} 3. e5 {[%clk 0:03:01]}  Nd5 {[%clk 0:02:52]} 4. Bc4 {[%clk 0:03:02]}  Nb6 {[%clk 0:02:48]} 5. Bb3 {[%clk 0:03:03]}  d5 {[%clk 0:02:48]} 6. exd6 {[%clk 0:03:04]}  Qxd6 {[%clk 0:02:45]} 7. Nf3 {[%clk 0:03:04]}  Nc6 {[%clk 0:02:43]} 8. O-O {[%clk 0:03:03]}  c4 {[%clk 0:02:40]} 9. Bc2 {[%clk 0:03:03]}  Bg4 {[%clk 0:02:41]} 10. Qe2 {[%clk 0:03:04]}  e6 {[%clk 0:02:39]} 11. Na3 {[%clk 0:03:05]}  Be7 {[%clk 0:02:25]} 12. Nxc4 {[%clk 0:03:01]}  Nxc4 {[%clk 0:02:25]} 13. Qxc4 {[%clk 0:03:02]}  Bxf3 {[%clk 0:02:25]} 14. gxf3 {[%clk 0:03:03]}  O-O {[%clk 0:02:24]} 15. f4 {[%clk 0:02:57]}  g6 {[%clk 0:02:19]} 16. d4 {[%clk 0:02:55]}  Bd8 {[%clk 0:02:13]} 17. Re1 {[%clk 0:02:46]}  Bc7 {[%clk 0:02:13]} 18. Qe2 {[%clk 0:02:39]}  Ne7 {[%clk 0:02:10]} 19. Qf3 {[%clk 0:02:21]}  Nd5 {[%clk 0:01:59]} 20. Be4 {[%clk 0:02:19]}  Rad8 {[%clk 0:01:39]} 21. a4 {[%clk 0:02:12]}  b6 {[%clk 0:01:06]} 22. Bd2 {[%clk 0:01:57]}  Nxf4 {[%clk 0:01:03]} 23. Bxf4 {[%clk 0:01:35]}  Qxf4 {[%clk 0:01:04]} 24. Qxf4 {[%clk 0:01:34]}  Bxf4 {[%clk 0:01:05]} 25. Rad1 {[%clk 0:01:25]}  Rd7 {[%clk 0:00:59]} 26. Kf1 {[%clk 0:01:12]}  Rfd8 {[%clk 0:00:57]} 27. h3 {[%clk 0:01:12]}  Kg7 {[%clk 0:00:56]} 28. Ke2 {[%clk 0:01:12]}  Kf6 {[%clk 0:00:46]} 29. Rd3 {[%clk 0:01:08]}  Kg7 {[%clk 0:00:41]} 30. Red1 {[%clk 0:01:08]}  f5 {[%clk 0:00:39]} 31. Bg2 {[%clk 0:01:01]}  Kf6 {[%clk 0:00:39]} 32. b4 {[%clk 0:00:57]}  Rc7 {[%clk 0:00:33]} 33. b5 {[%clk 0:00:50]}  Bd6 {[%clk 0:00:13]} 34. Bc6 {[%clk 0:00:49]}  Re7 {[%clk 0:00:11]} 35. Kf1 {[%clk 0:00:45]}  Bc7 {[%clk 0:00:12]} 36. c4 {[%clk 0:00:45]}  Kg5 {[%clk 0:00:12]} 37. c5 {[%clk 0:00:43]}  Kf6 {[%clk 0:00:09]} 38. Bf3 {[%clk 0:00:37]}  Bf4 {[%clk 0:00:08]} 39. Bc6 {[%clk 0:00:25]}  Bc7 {[%clk 0:00:08]} 40. Ra1 {[%clk 0:00:21]}  e5 {[%clk 0:00:07]} 41. dxe5+ {[%clk 0:00:21]}  Rxe5 {[%clk 0:00:07]} 42. Rxd8 {[%clk 0:00:20]}  Bxd8 {[%clk 0:00:08]} 43. cxb6 {[%clk 0:00:20]}  axb6 {[%clk 0:00:08]} 44. Re1 {[%clk 0:00:19]}  Rxe1+ {[%clk 0:00:07]} 45. Kxe1 {[%clk 0:00:20]}  Ke5 {[%clk 0:00:07]} 46. Ke2 {[%clk 0:00:19]}  Kd4 {[%clk 0:00:07]} 47. Be8 {[%clk 0:00:17]}  Bc7 {[%clk 0:00:07]} 48. Bf7 {[%clk 0:00:16]}  g5 {[%clk 0:00:07]} 49. Be6 {[%clk 0:00:16]}  Ke5 {[%clk 0:00:07]} 50. Bg8 {[%clk 0:00:16]}  h5 {[%clk 0:00:07]} 51. Bf7 {[%clk 0:00:16]}  h4 {[%clk 0:00:08]} 52. Bh5 {[%clk 0:00:15]}  Kf4 {[%clk 0:00:08]} 53. Bf3 {[%clk 0:00:12]}  g4 {[%clk 0:00:08]} 54. Bg2 {[%clk 0:00:12]}  Ke5 {[%clk 0:00:09]} 55. Kd3 {[%clk 0:00:10]}  Bd6 {[%clk 0:00:08]} 56. Bf1 {[%clk 0:00:09]}  Bc5 {[%clk 0:00:08]} 57. Ke2 {[%clk 0:00:09]}  Kd4 {[%clk 0:00:08]} 58. Bg2 {[%clk 0:00:09]}  Ke5 {[%clk 0:00:07]} 59. Bf1 {[%clk 0:00:08]}  Kf4 {[%clk 0:00:08]} 60. Bg2 {[%clk 0:00:08]}  Ke5 {[%clk 0:00:05]} 61. Bf1 {[%clk 0:00:08]} 1/2-1/2


[Site "https://www.chess.com"]

[Event "Titled Tuesday Blitz May 2 Late 2023"]
[White "Fedoseev, Vladimir"]
[Black "Manukyan, Sargis A."]
[WhiteFideId "24130737"]
[BlackFideId "13303970"]
[WhiteElo "2752"]
[BlackElo "2187"]
[Result "1-0"]
[Round "03"]
[TimeControl "180+2"]
[Date "2023.05.02"]
[WhiteClock "0:00:16"]
[BlackClock "0:00:11"]

1. e4 {[%clk 0:02:59]}  c6 {[%clk 0:03:00]} 2. Nf3 {[%clk 0:02:58]}  c5 {[%clk 0:02:58]} 3. c3 {[%clk 0:02:51]}  d5 {[%clk 0:02:57]} 4. e5 {[%clk 0:02:28]}  Nc6 {[%clk 0:02:56]} 5. d4 {[%clk 0:02:27]}  cxd4 {[%clk 0:02:56]} 6. cxd4 {[%clk 0:02:25]}  Bg4 {[%clk 0:02:52]} 7. Nbd2 {[%clk 0:02:21]}  e6 {[%clk 0:02:47]} 8. Be2 {[%clk 0:02:17]}  Bb4 {[%clk 0:02:46]} 9. O-O {[%clk 0:02:13]}  Nge7 {[%clk 0:02:42]} 10. Nb3 {[%clk 0:02:12]}  O-O {[%clk 0:02:41]} 11. h3 {[%clk 0:02:02]}  Bh5 {[%clk 0:02:34]} 12. Bd3 {[%clk 0:01:42]}  Bg6 {[%clk 0:02:29]} 13. Bxg6 {[%clk 0:01:36]}  Nxg6 {[%clk 0:02:30]} 14. Qd3 {[%clk 0:01:33]}  Be7 {[%clk 0:02:29]} 15. a3 {[%clk 0:01:30]}  Rc8 {[%clk 0:02:29]} 16. Bd2 {[%clk 0:01:29]}  a6 {[%clk 0:02:30]} 17. g3 {[%clk 0:01:27]}  b5 {[%clk 0:02:30]} 18. h4 {[%clk 0:01:25]}  Re8 {[%clk 0:02:07]} 19. Rac1 {[%clk 0:01:15]}  Nf8 {[%clk 0:02:06]} 20. Kg2 {[%clk 0:01:14]}  Qb6 {[%clk 0:02:05]} 21. Bg5 {[%clk 0:01:08]}  b4 {[%clk 0:01:57]} 22. Bxe7 {[%clk 0:01:02]}  Rxe7 {[%clk 0:01:54]} 23. Nc5 {[%clk 0:00:58]}  a5 {[%clk 0:01:48]} 24. Rc2 {[%clk 0:00:52]}  Rec7 {[%clk 0:01:48]} 25. Rfc1 {[%clk 0:00:52]}  Ne7 {[%clk 0:01:26]} 26. axb4 {[%clk 0:00:49]}  axb4 {[%clk 0:01:24]} 27. Nd2 {[%clk 0:00:44]}  h6 {[%clk 0:01:23]} 28. Ndb3 {[%clk 0:00:43]}  Nfg6 {[%clk 0:01:16]} 29. h5 {[%clk 0:00:41]}  Nf8 {[%clk 0:01:15]} 30. g4 {[%clk 0:00:39]}  Qa7 {[%clk 0:01:07]} 31. Ra1 {[%clk 0:00:37]}  Qb6 {[%clk 0:01:04]} 32. Ra6 {[%clk 0:00:36]}  Qb8 {[%clk 0:01:04]} 33. Ra5 {[%clk 0:00:35]}  Nd7 {[%clk 0:01:02]} 34. Na6 {[%clk 0:00:33]}  Qb6 {[%clk 0:00:48]} 35. Nxc7 {[%clk 0:00:32]}  Rxc7 {[%clk 0:00:48]} 36. Ra8+ {[%clk 0:00:32]}  Nf8 {[%clk 0:00:47]} 37. Rxc7 {[%clk 0:00:30]}  Qxc7 {[%clk 0:00:48]} 38. Nc5 {[%clk 0:00:30]}  Nc6 {[%clk 0:00:47]} 39. f4 {[%clk 0:00:23]}  Na5 {[%clk 0:00:35]} 40. Qb5 {[%clk 0:00:22]}  Nc6 {[%clk 0:00:28]} 41. Na6 {[%clk 0:00:21]}  Qd7 {[%clk 0:00:25]} 42. Nxb4 {[%clk 0:00:21]}  Nxe5 {[%clk 0:00:20]} 43. Qxd7 {[%clk 0:00:19]}  Nxd7 {[%clk 0:00:21]} 44. Nc6 {[%clk 0:00:19]}  g6 {[%clk 0:00:19]} 45. hxg6 {[%clk 0:00:18]}  fxg6 {[%clk 0:00:20]} 46. b4 {[%clk 0:00:19]}  Kf7 {[%clk 0:00:21]} 47. b5 {[%clk 0:00:19]}  h5 {[%clk 0:00:19]} 48. g5 {[%clk 0:00:19]}  e5 {[%clk 0:00:18]} 49. dxe5 {[%clk 0:00:18]}  Ke6 {[%clk 0:00:19]} 50. Nd4+ {[%clk 0:00:18]}  Ke7 {[%clk 0:00:18]} 51. Ra6 {[%clk 0:00:18]}  Nc5 {[%clk 0:00:18]} 52. Rc6 {[%clk 0:00:18]}  Nfd7 {[%clk 0:00:18]} 53. b6 {[%clk 0:00:18]}  Nd3 {[%clk 0:00:15]} 54. Kg3 {[%clk 0:00:16]}  Nb4 {[%clk 0:00:14]} 55. Rxg6 {[%clk 0:00:16]}  Nd3 {[%clk 0:00:13]} 56. b7 {[%clk 0:00:15]}  N3c5 {[%clk 0:00:13]} 57. Nc6+ {[%clk 0:00:16]}  Kf7 {[%clk 0:00:13]} 58. Rd6 {[%clk 0:00:16]}  Nxb7 {[%clk 0:00:10]} 59. Rxd7+ {[%clk 0:00:16]}  Kg6 {[%clk 0:00:11]} 60. Rxb7 {[%clk 0:00:16]} 1-0


[Site "https://www.chess.com"]

[Event "Titled Tuesday Blitz May 2 Late 2023"]
[White "Paravyan, David"]
[Black "Antonica, Dragos-Andrei"]
[WhiteFideId "4194985"]
[BlackFideId "1246372"]
[WhiteElo "2563"]
[BlackElo "2285"]
[Result "1-0"]
[Round "03"]
[TimeControl "180+2"]
[Date "2023.05.02"]
[WhiteClock "0:01:51"]
[BlackClock "0:00:19"]

1. e4 {[%clk 0:03:00]}  e6 {[%clk 0:02:56]} 2. d4 {[%clk 0:03:00]}  d5 {[%clk 0:02:55]} 3. Nd2 {[%clk 0:03:00]}  c5 {[%clk 0:02:53]} 4. Ngf3 {[%clk 0:03:01]}  cxd4 {[%clk 0:02:53]} 5. Nxd4 {[%clk 0:03:02]}  Nc6 {[%clk 0:02:53]} 6. Bb5 {[%clk 0:03:00]}  Bd7 {[%clk 0:02:53]} 7. Nxc6 {[%clk 0:03:01]}  bxc6 {[%clk 0:02:52]} 8. Bd3 {[%clk 0:03:01]}  Bd6 {[%clk 0:02:53]} 9. O-O {[%clk 0:03:00]}  Ne7 {[%clk 0:02:52]} 10. Re1 {[%clk 0:03:00]}  Ng6 {[%clk 0:02:52]} 11. Nf3 {[%clk 0:02:59]}  O-O {[%clk 0:02:45]} 12. e5 {[%clk 0:02:58]}  Be7 {[%clk 0:02:46]} 13. Be3 {[%clk 0:02:54]}  c5 {[%clk 0:02:45]} 14. c4 {[%clk 0:02:53]}  d4 {[%clk 0:02:44]} 15. Bd2 {[%clk 0:02:52]}  Bc6 {[%clk 0:02:44]} 16. Qe2 {[%clk 0:02:43]}  Qb6 {[%clk 0:02:40]} 17. b3 {[%clk 0:02:42]}  Rae8 {[%clk 0:02:31]} 18. Ng5 {[%clk 0:02:36]}  Bxg5 {[%clk 0:02:16]} 19. Bxg5 {[%clk 0:02:37]}  Qb7 {[%clk 0:02:08]} 20. Qg4 {[%clk 0:02:34]}  f5 {[%clk 0:01:39]} 21. exf6 {[%clk 0:02:32]}  gxf6 {[%clk 0:01:39]} 22. Bh6 {[%clk 0:02:32]}  f5 {[%clk 0:01:40]} 23. Qg3 {[%clk 0:02:23]}  Rf6 {[%clk 0:01:18]} 24. h4 {[%clk 0:02:23]}  Qb8 {[%clk 0:01:02]} 25. Qxb8 {[%clk 0:02:19]}  Rxb8 {[%clk 0:01:03]} 26. Bg5 {[%clk 0:02:19]}  Kf7 {[%clk 0:01:03]} 27. h5 {[%clk 0:02:12]}  Nf8 {[%clk 0:00:58]} 28. Bxf6 {[%clk 0:02:11]}  Kxf6 {[%clk 0:00:58]} 29. f4 {[%clk 0:02:10]}  Nd7 {[%clk 0:00:55]} 30. Re2 {[%clk 0:01:59]}  e5 {[%clk 0:00:54]} 31. fxe5+ {[%clk 0:02:00]}  Nxe5 {[%clk 0:00:55]} 32. Bxf5 {[%clk 0:01:59]}  Rg8 {[%clk 0:00:24]} 33. Bxh7 {[%clk 0:01:56]}  Rg5 {[%clk 0:00:22]} 34. Rf1+ {[%clk 0:01:53]}  Nf3+ {[%clk 0:00:19]} 35. Rxf3+ {[%clk 0:01:51]}  Bxf3 {[%clk 0:00:19]} 36. Rf2 {[%clk 0:01:52]}  Rxh5 {[%clk 0:00:18]} 37. Rxf3+ {[%clk 0:01:51]}  Ke5 {[%clk 0:00:19]} 38. Bd3 {[%clk 0:01:51]} 1-0


[Site "https://www.chess.com"]

[Event "Titled Tuesday Blitz May 2 Late 2023"]
[White "Bortnyk, Olexandr"]
[Black "Dobrowolski, Piotr"]
[WhiteFideId "14120828"]
[BlackFideId "1106236"]
[WhiteElo "2734"]
[BlackElo "2320"]
[Result "1-0"]
[Round "03"]
[TimeControl "180+2"]
[Date "2023.05.02"]
[WhiteClock "0:00:07"]
[BlackClock "0:00:06"]

1. d4 {[%clk 0:03:00]}  e6 {[%clk 0:02:58]} 2. Nc3 {[%clk 0:02:59]}  d5 {[%clk 0:02:56]} 3. Bf4 {[%clk 0:02:59]}  a6 {[%clk 0:02:54]} 4. e3 {[%clk 0:02:56]}  Nf6 {[%clk 0:02:53]} 5. a3 {[%clk 0:02:56]}  c5 {[%clk 0:02:51]} 6. Nf3 {[%clk 0:02:55]}  Nc6 {[%clk 0:02:51]} 7. h3 {[%clk 0:02:55]}  b5 {[%clk 0:02:50]} 8. dxc5 {[%clk 0:02:53]}  Bxc5 {[%clk 0:02:48]} 9. Bd3 {[%clk 0:02:54]}  b4 {[%clk 0:02:42]} 10. axb4 {[%clk 0:02:52]}  Nxb4 {[%clk 0:02:35]} 11. O-O {[%clk 0:02:51]}  O-O {[%clk 0:02:34]} 12. Ne5 {[%clk 0:02:25]}  Bb7 {[%clk 0:02:30]} 13. Qf3 {[%clk 0:02:21]}  Bd6 {[%clk 0:02:05]} 14. Ne2 {[%clk 0:02:11]}  Qc7 {[%clk 0:01:57]} 15. Ng4 {[%clk 0:02:05]}  Nxg4 {[%clk 0:01:49]} 16. Bxd6 {[%clk 0:02:00]}  Qxd6 {[%clk 0:01:45]} 17. Qxg4 {[%clk 0:02:00]}  Nxd3 {[%clk 0:01:41]} 18. cxd3 {[%clk 0:02:01]}  e5 {[%clk 0:01:41]} 19. d4 {[%clk 0:01:58]}  f6 {[%clk 0:01:28]} 20. Rfc1 {[%clk 0:01:55]}  Rfc8 {[%clk 0:01:24]} 21. Ng3 {[%clk 0:01:55]}  Rc7 {[%clk 0:00:42]} 22. Nf5 {[%clk 0:01:51]}  Qd7 {[%clk 0:00:43]} 23. Rxc7 {[%clk 0:00:54]}  Qxc7 {[%clk 0:00:42]} 24. Ra3 {[%clk 0:00:55]}  Kh8 {[%clk 0:00:26]} 25. Rc3 {[%clk 0:00:54]}  Qd7 {[%clk 0:00:26]} 26. Nxg7 {[%clk 0:00:48]}  Qxg7 {[%clk 0:00:20]} 27. Qxg7+ {[%clk 0:00:48]}  Kxg7 {[%clk 0:00:21]} 28. Rc7+ {[%clk 0:00:48]}  Kg6 {[%clk 0:00:21]} 29. Rxb7 {[%clk 0:00:49]}  exd4 {[%clk 0:00:22]} 30. exd4 {[%clk 0:00:50]}  Rc8 {[%clk 0:00:22]} 31. Rd7 {[%clk 0:00:45]}  Rc1+ {[%clk 0:00:22]} 32. Kh2 {[%clk 0:00:45]}  Rc2 {[%clk 0:00:22]} 33. Kg3 {[%clk 0:00:45]}  Rxb2 {[%clk 0:00:22]} 34. Rxd5 {[%clk 0:00:46]}  Rd2 {[%clk 0:00:20]} 35. Kf3 {[%clk 0:00:45]}  a5 {[%clk 0:00:19]} 36. Ke3 {[%clk 0:00:46]}  Ra2 {[%clk 0:00:19]} 37. h4 {[%clk 0:00:45]}  h5 {[%clk 0:00:19]} 38. g3 {[%clk 0:00:45]}  a4 {[%clk 0:00:19]} 39. Rd8 {[%clk 0:00:44]}  a3 {[%clk 0:00:19]} 40. Ra8 {[%clk 0:00:41]}  Ra1 {[%clk 0:00:19]} 41. Kf3 {[%clk 0:00:39]}  a2 {[%clk 0:00:19]} 42. d5 {[%clk 0:00:38]}  Rd1 {[%clk 0:00:19]} 43. Rxa2 {[%clk 0:00:37]}  Rxd5 {[%clk 0:00:19]} 44. Ra8 {[%clk 0:00:38]}  Rd3+ {[%clk 0:00:19]} 45. Ke4 {[%clk 0:00:37]}  Rd2 {[%clk 0:00:19]} 46. Ke3 {[%clk 0:00:37]}  Rb2 {[%clk 0:00:19]} 47. Rg8+ {[%clk 0:00:37]}  Kf7 {[%clk 0:00:19]} 48. Rd8 {[%clk 0:00:38]}  Kg6 {[%clk 0:00:18]} 49. Rd3 {[%clk 0:00:39]}  Ra2 {[%clk 0:00:18]} 50. Rd2 {[%clk 0:00:39]}  Ra3+ {[%clk 0:00:18]} 51. Ke4 {[%clk 0:00:39]}  Ra4+ {[%clk 0:00:19]} 52. Kf3 {[%clk 0:00:40]}  Ra3+ {[%clk 0:00:19]} 53. Kg2 {[%clk 0:00:40]}  Rb3 {[%clk 0:00:19]} 54. Re2 {[%clk 0:00:40]}  Ra3 {[%clk 0:00:20]} 55. Re3 {[%clk 0:00:41]}  Ra4 {[%clk 0:00:20]} 56. Kf3 {[%clk 0:00:29]}  Rb4 {[%clk 0:00:20]} 57. Re4 {[%clk 0:00:29]}  Rb3+ {[%clk 0:00:20]} 58. Kf4 {[%clk 0:00:29]}  Rb2 {[%clk 0:00:21]} 59. f3 {[%clk 0:00:29]}  Rb3 {[%clk 0:00:21]} 60. Rc4 {[%clk 0:00:27]}  Ra3 {[%clk 0:00:21]} 61. g4 {[%clk 0:00:27]}  hxg4 {[%clk 0:00:17]} 62. fxg4 {[%clk 0:00:26]}  Rb3 {[%clk 0:00:17]} 63. h5+ {[%clk 0:00:25]}  Kh6 {[%clk 0:00:16]} 64. Kf5 {[%clk 0:00:26]}  Kg7 {[%clk 0:00:11]} 65. Rc7+ {[%clk 0:00:23]}  Kh6 {[%clk 0:00:11]} 66. Kxf6 {[%clk 0:00:10]}  Rf3+ {[%clk 0:00:12]} 67. Ke5 {[%clk 0:00:10]}  Kg5 {[%clk 0:00:12]} 68. Rg7+ {[%clk 0:00:10]}  Kh6 {[%clk 0:00:12]} 69. Rg6+ {[%clk 0:00:10]}  Kh7 {[%clk 0:00:12]} 70. Rf6 {[%clk 0:00:10]}  Rg3 {[%clk 0:00:11]} 71. Kf4 {[%clk 0:00:10]}  Rg1 {[%clk 0:00:11]} 72. Kg5 {[%clk 0:00:11]}  Kg7 {[%clk 0:00:10]} 73. h6+ {[%clk 0:00:11]}  Kh7 {[%clk 0:00:09]} 74. Rf7+ {[%clk 0:00:11]}  Kg8 {[%clk 0:00:10]} 75. Rb7 {[%clk 0:00:11]}  Ra1 {[%clk 0:00:09]} 76. Rb6 {[%clk 0:00:11]}  Ra5+ {[%clk 0:00:09]} 77. Kg6 {[%clk 0:00:11]}  Ra8 {[%clk 0:00:09]} 78. g5 {[%clk 0:00:11]}  Kh8 {[%clk 0:00:10]} 79. Rb5 {[%clk 0:00:10]}  Ra6+ {[%clk 0:00:10]} 80. Kh5 {[%clk 0:00:11]}  Ra8 {[%clk 0:00:08]} 81. g6 {[%clk 0:00:07]}  Rc8 {[%clk 0:00:09]} 82. h7 {[%clk 0:00:06]}  Rd8 {[%clk 0:00:07]} 83. Kh6 {[%clk 0:00:06]}  Rd5 {[%clk 0:00:06]} 84. Rb8+ {[%clk 0:00:06]}  Rd8 {[%clk 0:00:06]} 85. Rxd8# {[%clk 0:00:07]} 1-0


[Site "https://www.chess.com"]